Workbook

Sheet Finance report
B2: Door Step School
B3: Cost Centre: Asha Silicon Valley
B4: Period: April 2013 to March 2014
B5: Amount Received from Asha Silicon Valley : | D5: INR 2035000
B8: Particulars | C8: Estimated Budget | D8: April | E8: May | F8: June | G8: July | H8: Aug. | I8: Sept. | J8: Oct. | K8: Nov. | L8: Dec. | M8: Jan. | N8: Feb. | O8: Mar. | P8: Total
C9: (INR)
B10: Management Cost
B11: Management Salary | C11: 83496 | D11: 7775 | E11: 7775 | F11: 8533 | G11: 8979 | H11: 4363 | I11: 4343 | J11: 8532 | K11: 8532 | L11: 8532 | M11: 6044 | N11: 6044 | O11: 6044 | P11: =SUM(D11:O11) -> 85496
B13: Administration
B14: Other Expenses | C14: 237187 | D14: 4325 | E14: 9740 | F14: 14304 | G14: 9868 | H14: 4262 | I14: 10709 | J14: 20813 | K14: 23393 | L14: 21730 | M14: 25139 | N14: 27142 | O14: 65762 | P14: =SUM(D14:O14) -> 237187
B16: Programme Expenses
B17: Teaching and Educational | C17: 120000 | D17: 810 | E17: 1537 | F17: 4390 | G17: 672 | H17: 4242 | I17: 12542 | J17: 2473 | K17: 14816 | L17: 10096 | M17: 36267 | N17: 5051 | O17: 4396 | P17: =SUM(D17:O17) -> 97292
B18: Transport | C18: 275000 | E18: 7000 | F18: 21000 | G18: 33000 | H18: 25500 | I18: 28875 | J18: 31080 | K18: 31260 | L18: 37080 | M18: 36645 | N18: 31920 | O18: 26880 | P18: 310240
B19: Picnic & Events | C19: 25000 | D19: 0 | E19: 0 | F19: 0 | G19: 0 | H19: 2448 | I19: 0 | J19: 0 | K19: 9264 | L19: 630 | M19: 2359 | N19: 500 | O19: 0 | P19: 15201
B20: Miscellaneous | C20: 10000 | D20: 0 | E20: 600 | F20: 2337 | G20: 800 | H20: 698 | I20: =122+1070 -> 1192 | J20: 210 | K20: 3106 | L20: 584 | M20: 1755 | N20: 63 | O20: 20 | P20: 11365
B21: Teachers Salaries | C21: 1456128 | D21: 107827 | E21: 118256 | F21: 120634 | G21: 136620 | H21: 124711 | I21: =622+127358+833 -> 128813 | J21: =124127+500 -> 124627 | K21: 126490 | L21: =124507+488 -> 124995 | M21: =133769+777+1707 -> 136253 | N21: =130294+517 -> 130811 | O21: =122815+1467 -> 124282 | P21: 1504319
B22: Coordinator | C22: 159528 | D22: 13154 | E22: 13122 | F22: 12873 | G22: 14530 | H22: 13987 | I22: 14849 | J22: 14830 | K22: 15676 | L22: 12873 | M22: 14152 | N22: 15899 | O22: 14095 | P22: 170040
B23: Supervisor | C23: 216768 | D23: 16902 | E23: 14589 | F23: 15787 | G23: 19142 | H23: 17778 | I23: 18335 | J23: 18519 | K23: 18823 | L23: 16386 | M23: 18277 | N23: 18669 | O23: 18628 | P23: 211835
B25: Staff Welfare
B26: Mediclaim of Staff
B27: Coordinators | C27: 450 | D27: 0 | E27: 0 | F27: 0 | G27: 0 | H27: 0 | I27: 0 | J27: 0 | K27: 0 | L27: 0 | M27: 0 | N27: 0 | O27: 0 | P27: =SUM(D27:O27) -> 0
B28: Supervisors | C28: 900 | D28: 0 | E28: 0 | F28: 0 | G28: 0 | H28: 0 | I28: 0 | J28: 0 | K28: 0 | L28: 0 | M28: 0 | N28: 0 | O28: 1579 | P28: =SUM(D28:O28) -> 1579
B29: Teachers | C29: 16200 | D29: 0 | E29: 0 | F29: 0 | G29: 0 | H29: 0 | I29: 0 | J29: 0 | K29: 0 | L29: 0 | M29: 0 | N29: 0 | O29: 19719 | P29: =SUM(D29:O29) -> 19719
B30: Staff Events | C30: 8400 | D30: 0 | E30: 3056 | F30: 170 | G30: 0 | H30: 624 | I30: 80 | J30: 70 | K30: 0 | L30: 1006 | M30: 0 | N30: 380 | O30: 70 | P30: =SUM(D30:O30) -> 5456
B31: Total | C31: =SUM(C11:C30) -> 2609057 | D31: 150793 | E31: 175675 | F31: 200028 | G31: 223611 | H31: 198613 | I31: 219738 | J31: =SUM(J11:J30) -> 221154 | K31: 251360 | L31: 233912 | M31: 276891 | N31: 236479 | O31: 281475 | P31: =SUM(P11:P30) -> 2669729
B35: A. Amount Received from Asha Silicon Valley | F35: =Receipts!F8 -> 2035000
B36: B. Amount may Received from Builders | F36: 1305979
B37: C. Funds received from Education Board for transport | F37: 89710
B38: D. Available Funds | F38: =F35+F36+F37 -> 3430689
B39: E. Total Expenses | F39: =P31 -> 2669729
B40: F. A+B+C-D Balance Amount | F40: =F38-F39 -> 760960
B45: Notes:
B46: Teaching and educatinal material | D46: Teaching and educational material supported by other donors. Hence the funds are partially utilised.
B47: Transport | D47: This year we incurred Rs. 420 per child per month for school transport. The budgeted amount was Rs.275 per child per month. The acutal expenses is more than the budgeted expenses to the tune of Rs. 145 per child per month. Hence actual expense incurred for transport is in excess of the budgeted amount.
B48: Picnic and Events | D48: During the picnics the tasnport was provided by Door Step Schools vehicles instead of the private vehicles. Hence the cost is less than the budgeted amount.
B49: Surplus amount | D49: We will like to draw your attention to the balance amount of Rs. 760960/- with us. The reason for this is at the time of submitting the budget we were discussing with the education board for giving us full or partial the transport expense. There was no commitment from their part at that time. Through our efforts we are succeeded and received the amount of Rs. 89710/- towards the school transport cost. Beside this we have garnered from the builders amount of Rs. 1305979/- which is in excess of our estimated amount of Rs. 574002/-Presently we have 760960/- amount with us.

Sheet Receipts
B6: Receipt Details
B7: Receipt no | C7: Day | D7: Month | E7: Year | F7: Amount Received in Rs. | G7: Title | H7: Name | I7: Type of Organization | J7: Program
B8: 319 | C8: 19 | D8: Nov. | E8: 2013 | F8: 2035000 | G8: M/s. | H8: Asha for Education (Asha Silicon) | I8: Grant | J8: EAC
